fUST/lending_fUST_20260411
["ID","MTS","AMOUNT","RATE_DAILY","PERIOD"]
[420271902,1775896243493,-300.0,9.438e-05,2]
[420271906,1775896243663,-300.0,9.438e-05,2]
[420271907,1775896243710,-300.0,9.438e-05,2]
[420271908,1775896243722,-3666.82065316,9.626e-05,2]
[420271913,1775896246175,-6217.4680283,9.626e-05,2]
[420271916,1775896441537,5000.0,9e-05,2]
[420271917,1775896463600,1333.84974491,9e-05,2]
[420271934,1775896679103,5000.0,9e-05,2]
[420271938,1775896701041,1461.9480068,9e-05,2]
[420272075,1775897432181,-151.0,9e-05,2]
[420272076,1775897432242,-151.0,9e-05,2]
[420272077,1775897432334,-259.55718184,9e-05,30]
[420272078,1775897432365,-151.0,9e-05,2]
[420272079,1775897432384,-546.0,9e-05,2]
[420272080,1775897432409,-209.62318534,9.061e-05,2]
[420272081,1775897432444,-389.33577277,9.061e-05,30]
[420272082,1775897432456,-198.1746398,9.136e-05,2]
[420272083,1775897432475,-250.0,9.327e-05,2]
[420272084,1775897432489,-1926.17956011,9.423e-05,2]
[420272085,1775897432499,-300.0,9.501e-05,2]
[420272086,1775897432521,-1200.0,9.501e-05,2]
[420272087,1775897432532,-500.0,9.503e-05,2]
[420272088,1775897432541,-500.0,9.503e-05,2]
[420272089,1775897432555,-503.76268156,9.503e-05,2]
[420272090,1775897432567,-500.0,9.503e-05,2]
[420272091,1775897432577,-500.0,9.503e-05,2]
[420272092,1775897432586,-500.0,9.503e-05,2]
[420272093,1775897432603,-500.0,9.503e-05,2]
[420272094,1775897432612,-500.0,9.503e-05,2]
[420272095,1775897432621,-500.0,9.503e-05,2]
[420272096,1775897432632,-500.0,9.503e-05,2]
[420272098,1775897432641,-500.0,9.503e-05,2]
[420272100,1775897432670,-500.0,9.503e-05,2]
[420272102,1775897432680,-500.0,9.524e-05,2]
[420272104,1775897432690,-500.0,9.524e-05,2]
[420272106,1775897432708,-500.0,9.524e-05,2]
[420272107,1775897432719,-500.0,9.524e-05,2]
[420272109,1775897432734,-500.0,9.524e-05,2]
[420272110,1775897432756,-500.0,9.524e-05,2]
[420272111,1775897432766,-500.0,9.524e-05,2]
[420272112,1775897432782,-214.22582208,9.524e-05,2]
[420272113,1775897432807,-500.0,9.524e-05,2]
[420272114,1775897432821,-500.0,9.524e-05,2]
[420272115,1775897432859,-500.0,9.524e-05,2]
[420272116,1775897432874,-500.0,9.524e-05,2]
[420272117,1775897432912,-432.8397609,9.524e-05,2]
[420272123,1775897438398,-67.1602391,9.524e-05,2]
[420272124,1775897438454,-500.0,9.524e-05,2]
[420272125,1775897438511,-500.0,9.524e-05,2]
[420272126,1775897438659,-500.0,9.524e-05,2]
[420272127,1775897438773,-500.0,9.524e-05,2]
[420272131,1775897438803,-500.0,9.524e-05,2]
[420272133,1775897438815,-375.43331313,9.524e-05,2]
[420272135,1775897438829,-124.56668687,9.524e-05,2]
[420272137,1775897438845,-151.0,9.525e-05,2]
[420272138,1775897438855,-151.0,9.525e-05,2]
[420272139,1775897438867,-151.0,9.525e-05,2]
[420272140,1775897438877,-464.80587346,9.526e-05,2]
[420272143,1775897441065,-459.34763194,9.526e-05,2]
[420272169,1775897449059,-5000.0,9.43e-05,2]
[420272171,1775897449081,-9839.45322356,9.526e-05,2]
[420272267,1775897456066,2000.0,8.9e-05,2]
[420272268,1775897456657,2000.0,8.8e-05,2]
[420272269,1775897457187,2000.0,8.7e-05,2]
[420272270,1775897457867,2000.0,8.6e-05,2]
[420272271,1775897458541,2000.0,8.5e-05,2]
[420272272,1775897458940,2000.0,8.4e-05,2]
[420272273,1775897459588,171.95628991,8.3e-05,2]
[420272336,1775897660895,5000.0,9e-05,2]
[420272350,1775897809032,511.01882226,9e-05,2]
[420272352,1775897812757,-1200.0,9.157e-05,2]
[420272353,1775897812783,-300.0,9.157e-05,2]
[420272354,1775897812819,-548.0,9.157e-05,2]
[420272355,1775897812853,-5000.0,9.158e-05,2]
[420272356,1775897812885,-500.0,9.251e-05,2]
[420272357,1775897812914,-511.5518481,9.251e-05,2]
[420272358,1775897812938,-377.637,9.335e-05,2]
[420272359,1775897812972,-500.0,9.477e-05,2]
[420272360,1775897813008,-500.0,9.477e-05,2]
[420272361,1775897813048,-597.60153765,9.477e-05,2]
[420272362,1775897813103,-43448.8605612,9.478e-05,2]
[420272363,1775897813238,-1293.3335836,9.478e-05,2]
[420272364,1775897813375,-442.69595534,9.5e-05,2]
[420272365,1775897813452,-500.0,9.503e-05,2]
[420272366,1775897813522,-500.0,9.503e-05,2]
[420272367,1775897813568,-151.0,9.526e-05,2]
[420272368,1775897813618,-151.0,9.526e-05,2]
[420272369,1775897813715,-151.0,9.526e-05,2]
[420272370,1775897813776,-151.0,9.526e-05,2]
[420272371,1775897813843,-250.78233,9.526e-05,2]
[420272372,1775897813875,-15739.47225036,9.526e-05,2]
[420272373,1775897813905,-500.0,9.603e-05,2]
[420272374,1775897813937,-151.0,9.625e-05,2]
[420272375,1775897813966,-151.0,9.625e-05,2]
[420272376,1775897813996,-151.0,9.625e-05,2]
[420272377,1775897814025,-151.0,9.625e-05,2]
[420272378,1775897814050,-151.0,9.625e-05,2]
[420272379,1775897814079,-600.0,9.626e-05,2]
[420272380,1775897814109,-151.0,9.626e-05,2]
[420272381,1775897814135,-151.0,9.626e-05,2]
[420272382,1775897814162,-151.0,9.626e-05,2]
[420272383,1775897814189,-151.0,9.626e-05,2]
[420272384,1775897814213,-151.0,9.626e-05,2]
[420272385,1775897814237,-151.0,9.626e-05,2]
[420272386,1775897814261,-948.0,9.626e-05,2]
[420272387,1775897814284,-166.0,9.626e-05,2]
[420272388,1775897814306,-224.46568176,9.626e-05,2]
[420272389,1775897814330,-946.0,9.626e-05,2]
[420272390,1775897814355,-155.0,9.626e-05,2]
[420272391,1775897814379,-155.40873782,9.626e-05,2]
[420272392,1775897814404,-22185.0,9.7e-05,2]
[420272393,1775897814426,-151.0,9.7e-05,2]
[420272394,1775897814454,-151.0,9.7e-05,2]
[420272395,1775897814479,-151.0,9.7e-05,2]
[420272396,1775897814503,-151.0,9.7e-05,2]
[420272397,1775897814530,-151.0,9.7e-05,2]
[420272398,1775897814554,-151.0,9.7e-05,2]
[420272399,1775897814586,-151.0,9.7e-05,2]
[420272400,1775897814615,-151.0,9.7e-05,2]
[420272401,1775897814643,-151.0,9.7e-05,2]
[420272402,1775897814681,-281.94,9.789e-05,7]
[420272403,1775897814741,-500.0,9.816e-05,2]
[420272404,1775897814814,-296.52545759,9.816e-05,2]
[420272405,1775897814867,-539.50751218,9.816e-05,2]
[420272406,1775897814942,-500.0,9.816e-05,2]
[420272407,1775897814998,-500.0,9.816e-05,2]
[420272408,1775897815039,-500.0,9.816e-05,2]
[420272409,1775897815291,-500.0,9.816e-05,2]
[420272410,1775897815401,-500.0,9.816e-05,2]
[420272411,1775897815482,-500.0,9.816e-05,2]
[420272412,1775897815531,-500.0,9.816e-05,2]
[420272413,1775897815569,-500.0,9.816e-05,2]
[420272414,1775897815602,-500.0,9.816e-05,2]
[420272415,1775897815632,-600.0,9.816e-05,2]
[420272416,1775897815663,-300.0,9.817e-05,2]
[420272417,1775897815687,-300.0,9.817e-05,2]
[420272418,1775897815714,-300.0,9.817e-05,2]
[420272419,1775897815739,-300.0,9.817e-05,2]
[420272420,1775897815765,-300.0,9.817e-05,2]
[420272421,1775897815792,-300.0,9.817e-05,2]
[420272422,1775897815816,-300.0,9.817e-05,2]
[420272423,1775897815839,-300.0,9.817e-05,2]
[420272424,1775897815863,-300.0,9.817e-05,2]
[420272425,1775897815888,-300.0,9.817e-05,2]
[420272426,1775897815913,-300.0,9.817e-05,2]
[420272427,1775897815937,-300.0,9.817e-05,2]
[420272428,1775897815961,-300.0,9.817e-05,2]
[420272429,1775897815986,-300.0,9.817e-05,2]
[420272430,1775897816013,-300.0,9.817e-05,2]
[420272431,1775897816036,-151.0,9.828e-05,2]
[420272432,1775897816059,-151.0,9.828e-05,2]
[420272433,1775897816082,-252.07296612,9.828e-05,2]
[420272434,1775897816106,-290.82,9.837e-05,7]
[420272435,1775897816128,-455.4182701,9.912e-05,2]
[420272436,1775897816156,-151.0,9.935e-05,2]
[420272437,1775897816183,-151.0,9.935e-05,2]
[420272438,1775897816206,-151.0,9.935e-05,2]
[420272439,1775897816233,-151.0,9.935e-05,2]
[420272440,1775897816256,-151.0,9.935e-05,2]
[420272441,1775897816283,-151.0,9.935e-05,2]
[420272442,1775897816309,-151.0,9.935e-05,2]
[420272443,1775897816338,-151.0,9.935e-05,2]
[420272444,1775897816365,-151.0,9.935e-05,2]
[420272445,1775897816390,-151.0,9.935e-05,2]
[420272446,1775897816419,-268.255733,9.935e-05,2]
[420272447,1775897816447,-151.0,9.935e-05,2]
[420272448,1775897816475,-162.380719,9.935e-05,2]
[420272449,1775897816502,-445.202766,9.935e-05,2]
[420272450,1775897816538,-3000.0,9.935e-05,2]
[420272451,1775897816570,-151.0,9.935e-05,2]
[420272452,1775897816593,-162.380719,9.935e-05,2]
[420272453,1775897816627,-3000.0,9.935e-05,2]
[420272454,1775897816667,-151.0,9.935e-05,2]
[420272455,1775897816711,-3000.0,9.935e-05,2]
[420272456,1775897816764,-151.0,9.935e-05,2]
[420272457,1775897816850,-3000.0,9.935e-05,2]
[420272458,1775897816997,-151.0,9.935e-05,2]
[420272459,1775897817045,-3000.0,9.935e-05,2]
[420272460,1775897817094,-151.0,9.935e-05,2]
[420272461,1775897817148,-3000.0,9.935e-05,2]
[420272462,1775897817199,-1957.856,9.935e-05,2]
[420272463,1775897817249,-151.0,9.935e-05,2]
[420272464,1775897817302,-151.0,9.935e-05,2]
[420272465,1775897817332,-151.0,9.935e-05,2]
[420272466,1775897817363,-151.0,9.935e-05,2]
[420272467,1775897817390,-151.0,9.935e-05,2]
[420272468,1775897817416,-151.0,9.935e-05,2]
[420272469,1775897817439,-151.0,9.935e-05,2]
[420272470,1775897817463,-151.0,9.935e-05,2]
[420272471,1775897817486,-151.0,9.935e-05,2]
[420272472,1775897817509,-151.0,9.935e-05,2]
[420272473,1775897817532,-500.0,9.935e-05,2]
[420272474,1775897817555,-3000.0,9.935e-05,2]
[420272475,1775897817578,-151.0,9.935e-05,2]
[420272476,1775897817602,-151.0,9.935e-05,2]
[420272477,1775897817627,-3000.0,9.935e-05,2]
[420272478,1775897817652,-3000.0,9.935e-05,2]
[420272479,1775897817675,-151.0,9.935e-05,2]
[420272480,1775897817700,-537.6845,9.935e-05,2]
[420272481,1775897817724,-156.587,9.935e-05,2]
[420272482,1775897817748,-3000.0,9.935e-05,2]
[420272483,1775897817773,-3000.0,9.935e-05,2]
[420272484,1775897817796,-2150.738,9.935e-05,2]
[420272485,1775897817821,-3000.0,9.935e-05,2]
[420272486,1775897817845,-3000.0,9.935e-05,2]
[420272487,1775897817870,-3000.0,9.935e-05,2]
[420272488,1775897817894,-3000.0,9.935e-05,2]
[420272489,1775897817918,-3000.0,9.935e-05,2]
[420272490,1775897817943,-3000.0,9.935e-05,2]
[420272491,1775897817967,-3000.0,9.935e-05,2]
[420272492,1775897817990,-537.6845,9.935e-05,2]
[420272493,1775897818012,-196.3909716,9.958e-05,2]
[420272494,1775897818038,-196.3797719,9.978e-05,2]
[420272495,1775897818062,-2030.296672,9.99e-05,2]
[420272496,1775897818086,-557.5788265,9.99e-05,2]
[420272497,1775897818113,-487.55568924,0.0001,2]
[420272498,1775897818138,-190.0,0.0001,3]
[420272499,1775897818165,-500.0,0.0001,2]
[420272500,1775897818191,-209.34,0.0001003,2]
[420272501,1775897818218,-2105.41764886,0.00010045,2]
[420272502,1775897818247,-578.20924308,0.00010045,2]
[420272503,1775897818275,-1000.0,0.00010051,2]
[420272504,1775897818302,-1000.0,0.00010051,2]
[420272505,1775897818333,-1000.0,0.00010051,2]
[420272506,1775897818358,-1000.0,0.00010051,2]
[420272507,1775897818386,-151.0,0.00010057,2]
[420272508,1775897818413,-153.78751,0.00010057,2]
[420272509,1775897818442,-151.0,0.00010057,2]
[420272510,1775897818469,-151.0,0.00010057,2]
[420272511,1775897818492,-500.0,0.00010059,2]
[420272512,1775897818519,-1680.0,0.00010073,2]
[420272513,1775897818546,-420.0,0.00010073,2]
[420272514,1775897818570,-2183.31810187,0.000101,2]
[420272515,1775897818600,-599.60298507,0.000101,2]
[420272516,1775897818627,-1006.73626578,0.00010151,2]
[420272517,1775897818651,-256.96127671,0.00010151,2]
[420272518,1775897818681,-332.32103328,0.00010155,2]
[420272519,1775897818707,-621.78829552,0.00010155,2]
[420272520,1775897818737,-160.02,0.00010207,2]
[420272521,1775897818766,-644.79446246,0.0001021,2]
[420272522,1775897818791,-800.0,0.00010263,2]
[420272523,1775897818819,-668.65185757,0.00010265,2]
[420272524,1775897818986,-800.0,0.00010285,2]
[420272525,1775897819046,-2902.85,0.000103,2]
[420272526,1775897819084,-693.3919763,0.0001032,2]
[420272527,1775897819113,-563.856587,0.00010351,2]
[420272528,1775897819146,-4017.88719644,0.00010359,2]
[420272541,1775898024466,-450.0,9.287e-05,2]
[420272544,1775898086970,161.412707,4.51e-05,2]
[420272547,1775898101375,4314.32732825,7.6e-05,2]
[420272548,1775898108116,5000.0,9e-05,2]
[420272554,1775898130487,1000.0,9e-05,2]
[420272624,1775898263318,5000.0,9e-05,2]
[420272658,1775898271627,5000.0,9e-05,2]
[420272699,1775898286480,5000.0,9e-05,2]
[420272703,1775898301839,2198.1814559,8.996e-05,2]
[420272767,1775898634045,-161.412707,9.02e-05,2]
[420272769,1775898634057,-546.0,9.02e-05,2]
[420272771,1775898634068,-241.05021167,9.287e-05,2]
[420272773,1775898634081,-300.0,9.665e-05,2]
[420272774,1775898634100,-300.0,9.665e-05,2]
[420272776,1775898634114,-300.0,9.665e-05,2]
[420272778,1775898634127,-300.0,9.665e-05,2]
[420272780,1775898634143,-1200.0,9.665e-05,2]
[420272782,1775898634158,-300.0,9.666e-05,2]
[420272784,1775898634169,-300.0,9.666e-05,2]
[420272785,1775898634193,-300.0,9.666e-05,2]
[420272787,1775898634210,-300.0,9.666e-05,2]
[420272788,1775898634239,-300.0,9.666e-05,2]
[420272789,1775898634267,-151.53708133,9.666e-05,2]
[420272790,1775898637020,-148.46291867,9.666e-05,2]
[420272791,1775898637036,-300.0,9.666e-05,2]
[420272792,1775898637046,-300.0,9.666e-05,2]
[420272793,1775898637061,-300.0,9.666e-05,2]
[420272794,1775898637078,-300.0,9.666e-05,2]
[420272795,1775898637093,-300.0,9.666e-05,2]
[420272796,1775898637103,-300.0,9.666e-05,2]
[420272797,1775898637113,-300.0,9.666e-05,2]
[420272798,1775898637123,-300.0,9.666e-05,2]
[420272799,1775898637135,-300.0,9.666e-05,2]
[420272800,1775898637145,-600.0,9.666e-05,2]
[420272801,1775898637155,-12.91772333,9.666e-05,2]
[420272810,1775898638766,-4061.36529756,9.666e-05,2]
[420272811,1775898638776,-500.0,9.801e-05,2]
[420272812,1775898638786,-2150.738,9.801e-05,2]
[420272813,1775898638795,-537.6845,9.801e-05,2]
[420272814,1775898638805,-557.5788265,9.856e-05,2]
[420272815,1775898638814,-578.20924308,9.911e-05,2]
[420272816,1775898638824,-455.5452178,9.912e-05,2]
[420272817,1775898638834,-196.3990411,9.912e-05,2]
[420272818,1775898638843,-845.45229216,9.935e-05,2]
[420272819,1775898638852,-219.88933067,9.963e-05,2]
[420272820,1775898638862,-599.60298507,9.966e-05,2]
[420272821,1775898638872,-621.78829552,0.00010021,2]
[420272823,1775898638882,-209.2644856,0.00010044,2]
[420272824,1775898638891,-213.33933554,0.00010076,2]
[420272835,1775898644029,-431.45512692,0.00010076,2]
[420272836,1775898644066,-668.65185757,0.00010131,2]
[420272837,1775898644076,-693.3919763,0.00010186,2]
[420272838,1775898644091,-150.2702823,0.00010223,2]
[420272839,1775898644111,-719.04747942,0.00010241,2]
[420272840,1775898644121,-503.65973035,0.00010296,2]
[420272841,1775898644138,-241.99250581,0.00010296,2]
[420272842,1775898644163,-1033.38939564,0.00010304,2]
[420272843,1775898644176,-217.75257405,0.00010304,2]
[420272844,1775898644192,-1671.15070806,0.00010304,2]
[420272847,1775898646578,-433.25441211,0.00010304,2]
[420272848,1775898646591,-800.0,0.00010345,2]
[420272849,1775898646607,-500.0,0.00010349,2]
[420272850,1775898646621,-2230.315306,0.00010349,2]
[420272851,1775898646630,-773.2413689,0.00010351,2]
[420272852,1775898646644,-177.51128196,0.00010356,2]
[420272853,1775898646656,-500.0,0.00010356,2]
[420272854,1775898646673,-500.0,0.00010356,2]
[420272855,1775898646686,-500.0,0.00010356,2]
[420272856,1775898646695,-500.0,0.00010356,2]
[420272857,1775898646717,-500.0,0.00010356,2]
[420272858,1775898646733,-500.0,0.00010356,2]
[420272859,1775898646751,-500.0,0.00010356,2]
[420272860,1775898646766,-500.0,0.00010356,2]
[420272861,1775898646780,-500.0,0.00010356,2]
[420272862,1775898646805,-500.0,0.00010356,2]
[420272863,1775898646820,-500.0,0.00010356,2]
[420272864,1775898646833,-367.90547508,0.00010356,2]
[420272867,1775898646973,-132.09452492,0.00010356,2]
[420272868,1775898646989,-500.0,0.00010356,2]
[420272869,1775898647003,-500.0,0.00010356,2]
[420272870,1775898647021,-500.0,0.00010356,2]
[420272871,1775898647039,-500.0,0.00010356,2]
[420272872,1775898647052,-500.0,0.00010356,2]
[420272873,1775898647066,-179.37279256,0.00010356,2]
[420272874,1775898647094,-320.62720744,0.00010356,2]
[420272875,1775898647105,-500.0,0.00010356,2]
[420272876,1775898647144,-500.0,0.00010356,2]
[420272877,1775898647179,-500.0,0.00010356,2]
[420272878,1775898647197,-500.0,0.00010356,2]
[420272879,1775898647211,-500.0,0.00010356,2]
[420272880,1775898647228,-500.0,0.00010356,2]
[420272881,1775898647240,-500.0,0.00010356,2]
[420272882,1775898647253,-500.0,0.00010356,2]
[420272883,1775898647268,-500.0,0.00010356,2]
[420272884,1775898647278,-500.0,0.00010356,2]
[420272885,1775898647296,-948.0,0.00010359,2]
[420272886,1775898647307,-155.0,0.00010359,2]
[420272887,1775898647320,-321.36765008,0.00010359,2]
[420272907,1775898696897,500.0,8.91e-05,2]
[420272908,1775898696936,500.0,8.91e-05,2]
[420272909,1775898696975,500.0,8.91e-05,2]
[420272910,1775898697011,500.0,8.91e-05,2]
[420272911,1775898705616,500.0,8.81e-05,2]
[420272912,1775898705653,1500.0,8.81e-05,2]
[420273059,1775899271905,2700.0,9e-05,2]
[420273240,1775899824478,-948.0,9e-05,2]
[420273241,1775899824512,-948.0,9e-05,2]
[420273242,1775899824573,-537.55870063,9e-05,2]
[420273458,1775899841755,-51.54238499,9e-05,2]
[420273459,1775899841858,-58.89891438,9e-05,2]
[420273460,1775899841873,-648.0,9e-05,2]
[420273461,1775899841900,-299.63409247,9e-05,2]
[420273467,1775899843417,-648.36590753,9e-05,2]
[420273468,1775899843426,-648.0,9e-05,2]
[420273469,1775899843458,-948.0,9e-05,2]
[420273470,1775899843467,-340.0,9e-05,2]
[420273471,1775899843501,-648.0,9e-05,2]
[420273472,1775899843511,-948.0,9e-05,2]
[420273473,1775899843534,-648.0,9e-05,2]
[420273474,1775899843554,-948.0,9e-05,2]
[420273475,1775899843563,-648.0,9e-05,2]
[420273476,1775899843584,-948.0,9e-05,2]
[420273477,1775899843594,-648.0,9e-05,2]
[420273478,1775899843619,-948.0,9e-05,2]
[420273479,1775899843629,-648.0,9e-05,2]
[420273480,1775899843639,-948.0,9e-05,2]
[420273481,1775899843661,-648.0,9e-05,2]
[420273482,1775899843670,-948.0,9e-05,2]
[420273483,1775899843680,-648.0,9e-05,2]
[420273484,1775899843698,-948.0,9e-05,2]
[420273485,1775899843708,-648.0,9e-05,2]
[420273486,1775899843718,-648.0,9e-05,2]
[420273487,1775899843727,-948.0,9e-05,2]
[420273488,1775899843742,-648.0,9e-05,2]
[420273489,1775899843752,-948.0,9e-05,2]
[420273490,1775899843762,-648.0,9e-05,2]
[420273491,1775899843777,-948.0,9e-05,2]
[420273492,1775899843787,-387.27695784,9e-05,2]
[420273493,1775899843798,-948.0,9e-05,2]
[420273494,1775899843807,-948.0,9e-05,2]
[420273495,1775899843821,-948.0,9e-05,2]
[420273496,1775899843831,-948.0,9e-05,2]
[420273497,1775899843843,-329.45924367,9e-05,2]
[420273498,1775899843852,-547.0,9.09e-05,2]
[420273499,1775899843866,-455.5310146,9.09e-05,2]
[420273500,1775899843878,-300.0,9.207e-05,2]
[420273501,1775899843887,-204.0,9.286e-05,2]
[420273502,1775899843898,-300.0,9.286e-05,2]
[420273503,1775899843915,-300.0,9.286e-05,2]
[420273504,1775899843927,-300.0,9.286e-05,2]
[420273505,1775899843939,-1200.0,9.286e-05,2]
[420273506,1775899843953,-205.7032219,9.287e-05,2]
[420273507,1775899843971,-340.0,9.287e-05,2]
[420273508,1775899843984,-340.0,9.287e-05,2]
[420273509,1775899844009,-648.0,9.287e-05,2]
[420273510,1775899844022,-340.0,9.287e-05,2]
[420273511,1775899844047,-648.0,9.287e-05,2]
[420273512,1775899844058,-340.0,9.287e-05,2]
[420273513,1775899844077,-340.0,9.287e-05,2]
[420273514,1775899844111,-648.0,9.287e-05,2]
[420273515,1775899844128,-648.0,9.287e-05,2]
[420273516,1775899844154,-340.0,9.287e-05,2]
[420273517,1775899844166,-340.0,9.287e-05,2]
[420273518,1775899844196,-648.0,9.287e-05,2]
[420273519,1775899844224,-340.0,9.287e-05,2]
[420273520,1775899844233,-648.0,9.287e-05,2]
[420273521,1775899844243,-340.0,9.287e-05,2]
[420273522,1775899844265,-648.0,9.287e-05,2]
[420273523,1775899844274,-155.0,9.287e-05,2]
[420273524,1775899844283,-340.0,9.287e-05,2]
[420273525,1775899844311,-155.0,9.287e-05,2]
[420273526,1775899844321,-648.0,9.287e-05,2]
[420273527,1775899844331,-340.0,9.287e-05,2]
[420273528,1775899844346,-155.0,9.287e-05,2]
[420273529,1775899844361,-525.05337156,9.287e-05,2]
[420273530,1775899844371,-340.0,9.287e-05,2]
[420273531,1775899844384,-648.0,9.287e-05,2]
[420273532,1775899844393,-155.0,9.287e-05,2]
[420273534,1775899844406,-340.0,9.287e-05,2]
[420273536,1775899844415,-648.0,9.287e-05,2]
[420273537,1775899844427,-153.94944058,9.287e-05,2]
[420273538,1775899844437,-340.0,9.287e-05,2]
[420273539,1775899844451,-648.0,9.287e-05,2]
[420273540,1775899844461,-340.0,9.287e-05,2]
[420273541,1775899844470,-648.0,9.287e-05,2]
[420273542,1775899844482,-340.0,9.287e-05,2]
[420273543,1775899844499,-648.0,9.287e-05,2]
[420273544,1775899844509,-340.0,9.287e-05,2]
[420273545,1775899844518,-648.0,9.287e-05,2]
[420273546,1775899844543,-340.0,9.287e-05,2]
[420273547,1775899844553,-648.0,9.287e-05,2]
[420273548,1775899844563,-340.0,9.287e-05,2]
[420273549,1775899844581,-340.0,9.287e-05,2]
[420273550,1775899844591,-340.0,9.287e-05,2]
[420273551,1775899844607,-340.0,9.287e-05,2]
[420273552,1775899844631,-340.0,9.287e-05,2]
[420273553,1775899844647,-340.0,9.287e-05,2]
[420273554,1775899844675,-340.0,9.287e-05,2]
[420273555,1775899844685,-340.0,9.287e-05,2]
[420273556,1775899844695,-340.0,9.287e-05,2]
[420273557,1775899844731,-340.0,9.287e-05,2]
[420273558,1775899844749,-340.0,9.287e-05,2]
[420273559,1775899844767,-340.0,9.287e-05,2]
[420273560,1775899844780,-340.0,9.287e-05,2]
[420273561,1775899844802,-340.0,9.287e-05,2]
[420273562,1775899844838,-340.0,9.287e-05,2]
[420273563,1775899844859,-340.0,9.287e-05,2]
[420273564,1775899844893,-340.0,9.287e-05,2]
[420273565,1775899844903,-340.0,9.287e-05,2]
[420273566,1775899844927,-340.0,9.287e-05,2]
[420273567,1775899844939,-340.0,9.287e-05,2]
[420273568,1775899844951,-340.0,9.287e-05,2]
[420273569,1775899844969,-340.0,9.287e-05,2]
[420273570,1775899844982,-340.0,9.287e-05,2]
[420273571,1775899845011,-340.0,9.287e-05,2]
[420273572,1775899845020,-340.0,9.287e-05,2]
[420273573,1775899845045,-340.0,9.287e-05,2]
[420273574,1775899845056,-340.0,9.287e-05,2]
[420273575,1775899845065,-340.0,9.287e-05,2]
[420273576,1775899845089,-340.0,9.287e-05,2]
[420273577,1775899845101,-340.0,9.287e-05,2]
[420273578,1775899845111,-340.0,9.287e-05,2]
[420273579,1775899845126,-340.0,9.287e-05,2]
[420273580,1775899845136,-340.0,9.287e-05,2]
[420273581,1775899845150,-340.0,9.287e-05,2]
[420273582,1775899845159,-340.0,9.287e-05,2]
[420273583,1775899845176,-340.0,9.287e-05,2]
[420273584,1775899845192,-340.0,9.287e-05,2]
[420273585,1775899845217,-340.0,9.287e-05,2]
[420273586,1775899845226,-340.0,9.287e-05,2]
[420273587,1775899845239,-340.0,9.287e-05,2]
[420273588,1775899845258,-340.0,9.287e-05,2]
[420273589,1775899845268,-340.0,9.287e-05,2]
[420273590,1775899845280,-340.0,9.287e-05,2]
[420273591,1775899845301,-340.0,9.287e-05,2]
[420273592,1775899845311,-340.0,9.287e-05,2]
[420273593,1775899845325,-340.0,9.287e-05,2]
[420273594,1775899845338,-340.0,9.287e-05,2]
[420273595,1775899845356,-340.0,9.287e-05,2]
[420273596,1775899845369,-340.0,9.287e-05,2]
[420273597,1775899845381,-340.0,9.287e-05,2]
[420273598,1775899845399,-340.0,9.287e-05,2]
[420273599,1775899845410,-340.0,9.287e-05,2]
[420273600,1775899845422,-355.65561852,9.287e-05,2]
[420273601,1775899845444,-340.0,9.287e-05,2]
[420273602,1775899845457,-340.0,9.287e-05,2]
[420273603,1775899845470,-340.0,9.287e-05,2]
[420273604,1775899845487,-340.0,9.287e-05,2]
[420273605,1775899845505,-358.59251362,9.287e-05,2]
[420273606,1775899845519,-179.0,9.287e-05,2]
[420273607,1775899845531,-179.0,9.287e-05,2]
[420273608,1775899845546,-180.23355036,9.287e-05,2]
[420273609,1775899845557,-300.80477,9.287e-05,2]